fUSD/lending_fUSD_20250107
["ID","MTS","AMOUNT","RATE_DAILY","PERIOD"]
[347983229,1736260246140,-500.0,0.00010243,2]
[347983230,1736260246150,-572.85,0.00010243,2]
[347983231,1736260246159,-757.97,0.00010243,2]
[347983232,1736260246168,-788.34,0.00010243,2]
[347983233,1736260246178,-688.07,0.00010243,2]
[347983234,1736260246187,-3863.15,0.00010243,2]
[347983235,1736260246196,-500.0,0.00010243,2]
[347983236,1736260246205,-2412.78,0.00010243,2]
[347983237,1736260246215,-1544.4,0.00010243,2]
[347983238,1736260246225,-500.0,0.00010243,2]
[347983239,1736260246235,-1308.58,0.00010243,2]
[347983240,1736260246244,-961.83,0.00010243,2]
[347983241,1736260246254,-1400.61,0.00010243,2]
[347983242,1736260246264,-5385.81,0.00010243,2]
[347983243,1736260246274,-500.0,0.00010243,2]
[347983244,1736260246284,-5207.76,0.00010243,2]
[347983245,1736260246294,-1928.48,0.00010243,2]
[347983246,1736260246303,-5967.97,0.00010243,2]
[347983247,1736260246319,-500.0,0.00010243,2]
[347983248,1736260246328,-4574.8,0.00010243,2]
[347983249,1736260246338,-1151.7,0.00010243,2]
[347983250,1736260246347,-500.0,0.00010243,2]
[347983251,1736260246357,-500.0,0.00010243,2]
[347983252,1736260246367,-762.07,0.00010243,2]
[347983253,1736260246377,-500.0,0.00010243,2]
[347983254,1736260246386,-633.96,0.00010243,2]
[347983255,1736260246397,-1266.17,0.00010243,2]
[347983256,1736260246407,-500.0,0.00010243,2]
[347983257,1736260246416,-500.0,0.00010243,2]
[347983258,1736260246426,-615.6,0.00010243,2]
[347983259,1736260246436,-1560.55,0.00010243,2]
[347983260,1736260246445,-548.29,0.00010243,2]
[347983261,1736260246455,-1895.82,0.00010243,2]
[347983262,1736260246464,-500.0,0.00010243,2]
[347983263,1736260246473,-1224.27,0.00010243,2]
[347983264,1736260246482,-550.92,0.00010243,2]
[347983265,1736260246492,-613.26,0.00010243,2]
[347983266,1736260246501,-2586.28,0.00010243,2]
[347983267,1736260246512,-1664.16,0.00010243,2]
[347983268,1736260246522,-1063.01,0.00010243,2]
[347983269,1736260246532,-1054.88,0.00010243,2]
[347983270,1736260246542,-1775.37,0.00010243,2]
[347983271,1736260246551,-500.0,0.00010243,2]
[347983272,1736260246564,-500.0,0.00010243,2]
[347983273,1736260246573,-500.0,0.00010243,2]
[347983274,1736260246583,-500.0,0.00010245,2]
[347983275,1736260246594,-500.0,0.00010245,2]
[347983276,1736260246605,-500.0,0.00010245,2]
[347983277,1736260246614,-500.0,0.00010245,2]
[347983278,1736260246624,-500.0,0.00010245,2]
[347983279,1736260246635,-500.0,0.00010245,2]
[347983280,1736260246645,-500.0,0.00010245,2]
[347983281,1736260246654,-500.0,0.00010245,2]
[347983282,1736260246664,-500.0,0.00010245,2]
[347983283,1736260246673,-500.0,0.00010245,2]
[347983284,1736260246684,-500.0,0.00010245,2]
[347983285,1736260246694,-500.0,0.00010245,2]
[347983286,1736260246704,-500.0,0.00010245,2]
[347983287,1736260246714,-500.0,0.00010245,2]
[347983288,1736260246723,-287.22468158,0.00010245,2]
[347983289,1736260246734,-622.99,0.00010245,2]
[347983290,1736260246744,-500.0,0.00010245,2]
[347983291,1736260246760,-500.0,0.00010245,2]
[347983292,1736260246769,-500.0,0.00010245,2]
[347983293,1736260246779,-500.0,0.00010245,2]
[347983294,1736260246789,-500.0,0.00010245,2]
[347983295,1736260246798,-500.0,0.00010245,2]
[347983296,1736260246808,-500.0,0.00010245,2]
[347983297,1736260246827,-500.0,0.00010245,2]
[347983298,1736260246837,-670.58,0.00010245,2]
[347983299,1736260246846,-500.0,0.00010245,2]
[347983300,1736260246855,-500.0,0.00010245,2]
[347983301,1736260246865,-500.0,0.00010245,2]
[347983302,1736260246874,-591.66,0.00010245,2]
[347983303,1736260246883,-500.0,0.00010245,2]
[347983304,1736260246893,-500.0,0.00010245,2]
[347983305,1736260246902,-500.0,0.00010245,2]
[347983306,1736260246912,-500.0,0.00010245,2]
[347983307,1736260246922,-500.0,0.00010245,2]
[347983308,1736260246931,-548.76,0.00010245,2]
[347983309,1736260246941,-500.0,0.00010245,2]
[347983310,1736260246950,-500.0,0.00010245,2]
[347983311,1736260246960,-500.0,0.00010245,2]
[347983312,1736260246969,-500.0,0.00010245,2]
[347983313,1736260246979,-500.0,0.00010245,2]
[347983314,1736260246989,-500.0,0.00010245,2]
[347983315,1736260246999,-500.0,0.00010245,2]
[347983316,1736260247008,-500.0,0.00010245,2]
[347983317,1736260247017,-500.0,0.00010245,2]
[347983318,1736260247027,-500.0,0.00010245,2]
[347983319,1736260247036,-791.86,0.00010245,2]
[347983320,1736260247046,-500.0,0.00010245,2]
[347983321,1736260247055,-500.0,0.00010245,2]
[347983322,1736260247071,-500.0,0.00010245,2]
[347983323,1736260247082,-500.0,0.00010245,2]
[347983324,1736260247091,-658.64,0.00010245,2]
[347983325,1736260247100,-500.0,0.00010245,2]
[347983326,1736260247109,-500.0,0.00010245,2]
[347983327,1736260247118,-500.0,0.00010245,2]
[347983328,1736260247128,-500.0,0.00010245,2]
[347983329,1736260247137,-500.0,0.00010245,2]
[347983330,1736260247147,-500.0,0.00010245,2]
[347983331,1736260247156,-500.0,0.00010245,2]
[347983332,1736260247166,-500.0,0.00010245,2]
[347983333,1736260247175,-518.22,0.00010245,2]
[347983334,1736260247184,-500.0,0.00010245,2]
[347983335,1736260247194,-500.0,0.00010245,2]
[347983336,1736260247204,-500.0,0.00010245,2]
[347983337,1736260247213,-500.0,0.00010245,2]
[347983338,1736260247223,-500.0,0.00010245,2]
[347983339,1736260247232,-500.0,0.00010245,2]
[347983340,1736260247242,-500.0,0.00010245,2]
[347983341,1736260247251,-500.0,0.00010245,2]
[347983342,1736260247260,-500.0,0.00010245,2]
[347983343,1736260247269,-500.0,0.00010245,2]
[347983344,1736260247279,-500.0,0.00010245,2]
[347983345,1736260247289,-500.0,0.00010245,2]
[347983346,1736260247299,-500.0,0.00010245,2]
[347983347,1736260247310,-617.52,0.00010245,2]
[347983348,1736260247321,-500.0,0.00010245,2]
[347983349,1736260247331,-500.0,0.00010245,2]
[347983350,1736260247340,-500.0,0.00010245,2]
[347983351,1736260247350,-500.0,0.00010245,2]
[347983352,1736260247360,-500.0,0.00010245,2]
[347983353,1736260247369,-500.0,0.00010245,2]
[347983354,1736260247379,-500.0,0.00010245,2]
[347983355,1736260247389,-500.0,0.00010245,2]
[347983356,1736260247399,-500.0,0.00010245,2]
[347983357,1736260247410,-635.34,0.00010245,2]
[347983358,1736260247420,-500.0,0.00010245,2]
[347983359,1736260247430,-500.0,0.00010245,2]
[347983360,1736260247443,-500.0,0.00010245,2]
[347983361,1736260247452,-500.0,0.00010245,2]
[347983362,1736260247462,-500.0,0.00010245,2]
[347983363,1736260247472,-500.0,0.00010245,2]
[347983364,1736260247482,-520.06,0.00010245,2]
[347983365,1736260247493,-500.0,0.00010245,2]
[347983366,1736260247503,-500.0,0.00010245,2]
[347983367,1736260247512,-500.0,0.00010245,2]
[347983368,1736260247523,-500.0,0.00010245,2]
[347983369,1736260247532,-271.90843516,0.00010245,2]
[347983370,1736260247542,-654.6,0.00010245,2]
[347983371,1736260247553,-500.0,0.00010245,2]
[347983372,1736260247566,-500.0,0.00010245,2]
[347983373,1736260247576,-500.0,0.00010245,2]
[347983374,1736260247587,-500.0,0.00010245,2]
[347983375,1736260247598,-514.51,0.00010245,2]
[347983376,1736260247609,-1104.68,0.00010245,2]
[347983377,1736260247620,-500.0,0.00010245,2]
[347983378,1736260247630,-744.02,0.00010245,2]
[347983379,1736260247640,-500.0,0.00010245,2]
[347983380,1736260247650,-500.0,0.00010245,2]
[347983381,1736260247660,-500.0,0.00010245,2]
[347983382,1736260247671,-562.68,0.00010245,2]
[347983383,1736260247680,-456.94124582,0.00010245,2]
[347983384,1736260247690,-500.0,0.00010245,2]
[347983385,1736260247700,-500.0,0.00010245,2]
[347983386,1736260247710,-500.0,0.00010245,2]
[347983387,1736260247720,-500.0,0.00010245,2]
[347983388,1736260247730,-500.0,0.00010245,2]
[347983389,1736260247740,-500.0,0.00010245,2]
[347983390,1736260247750,-1524.58,0.00010245,2]
[347983391,1736260247763,-500.0,0.00010245,2]
[347983392,1736260247773,-711.78,0.00010245,2]
[347983393,1736260247783,-500.0,0.00010245,2]
[347983394,1736260247795,-500.0,0.00010245,2]
[347983395,1736260247805,-500.0,0.00010245,2]
[347983396,1736260247819,-500.0,0.00010245,2]
[347983397,1736260247830,-505.58,0.00010245,2]
[347983398,1736260247840,-500.0,0.00010245,2]
[347983399,1736260247851,-500.0,0.00010245,2]
[347983400,1736260247863,-1265.25,0.00010245,2]
[347983401,1736260247874,-895.36,0.00010245,2]
[347983402,1736260247885,-500.0,0.00010245,2]
[347983403,1736260247896,-699.58,0.00010245,2]
[347983404,1736260247906,-500.0,0.00010245,2]
[347983405,1736260247917,-500.0,0.00010245,2]
[347983406,1736260247929,-2484.5,0.00010245,2]
[347983407,1736260247939,-500.0,0.00010245,2]
[347983408,1736260247949,-673.87,0.00010245,2]
[347983409,1736260247959,-2234.04,0.00010245,2]
[347983410,1736260247968,-2140.96,0.00010245,2]
[347983411,1736260247978,-500.0,0.00010245,2]
[347983412,1736260247989,-500.0,0.00010245,2]
[347983413,1736260247999,-894.24,0.00010245,2]
[347983414,1736260248009,-500.0,0.00010245,2]
[347983415,1736260248019,-513.3,0.00010245,2]
[347983416,1736260248031,-501.44,0.00010245,2]
[347983417,1736260248041,-1156.24,0.00010245,2]
[347983418,1736260248051,-1123.76,0.00010245,2]
[347983419,1736260248063,-500.0,0.00010245,2]
[347983420,1736260248073,-1849.47,0.00010245,2]
[347983421,1736260248084,-500.0,0.00010245,2]
[347983422,1736260248095,-500.0,0.00010245,2]
[347983423,1736260248105,-1210.21,0.00010245,2]
[347983424,1736260248116,-358.22619963,0.00010245,2]
[347983425,1736260248126,-2112.07,0.00010245,2]
[347983426,1736260248136,-2024.07,0.00010245,2]
[347983427,1736260248147,-500.0,0.00010245,2]
[347983428,1736260248158,-779.08,0.00010245,2]
[347983429,1736260248167,-500.0,0.00010245,2]
[347983430,1736260248177,-500.0,0.00010245,2]
[347983431,1736260248187,-522.07,0.00010245,2]
[347983432,1736260248197,-557.43,0.00010245,2]
[347983433,1736260248206,-716.88,0.00010245,2]
[347983434,1736260248217,-500.0,0.00010245,2]
[347983435,1736260248226,-500.0,0.00010245,2]
[347983436,1736260248237,-500.0,0.00010245,2]
[347983437,1736260248246,-500.0,0.00010245,2]
[347983438,1736260248257,-500.0,0.00010245,2]
[347983439,1736260248267,-521.79,0.00010245,2]
[347983440,1736260248277,-500.0,0.00010245,2]
[347983441,1736260248287,-500.0,0.00010245,2]
[347983442,1736260248297,-500.0,0.00010245,2]
[347983443,1736260248307,-1470.46,0.00010245,2]
[347983444,1736260248320,-1932.19,0.00010245,2]
[347983445,1736260248330,-500.0,0.00010245,2]
[347983446,1736260248340,-864.44,0.00010245,2]
[347983447,1736260248350,-500.0,0.00010245,2]
[347983448,1736260248359,-1855.77,0.00010245,2]
[347983449,1736260248371,-500.0,0.00010245,2]
[347983450,1736260248381,-500.0,0.00010245,2]
[347983451,1736260248390,-1460.2,0.00010245,2]
[347983452,1736260248400,-500.0,0.00010245,2]
[347983453,1736260248410,-5836.79,0.00010245,2]
[347983454,1736260248421,-800.93,0.00010245,2]
[347983455,1736260248431,-2459.57,0.00010245,2]
[347983456,1736260248442,-3676.73,0.00010245,2]
[347983457,1736260248452,-500.0,0.00010245,2]
[347983458,1736260248462,-150.0,0.00010245,2]
[347983459,1736260248472,-1462.52,0.00010246,2]
[347983460,1736260248483,-1782.12,0.00010246,2]
[347983461,1736260248494,-500.0,0.00010246,2]
[347983462,1736260248504,-697.84,0.00010246,2]
[347983463,1736260248514,-2814.93,0.00010246,2]
[347983464,1736260248524,-903.42,0.00010246,2]
[347983465,1736260248535,-1157.73,0.00010246,2]
[347983466,1736260248545,-854.3,0.00010246,2]
[347983467,1736260248555,-584.19,0.00010246,2]
[347983468,1736260248571,-1445.91,0.00010246,2]
[347983469,1736260248582,-829.39,0.00010246,2]
[347983470,1736260248592,-2440.47,0.00010246,2]
[347983471,1736260248602,-2432.97,0.00010246,2]
[347983472,1736260248612,-2973.67,0.00010246,2]
[347983473,1736260248623,-1731.98,0.00010246,2]
[347983474,1736260248634,-1908.14,0.00010246,2]
[347983475,1736260248645,-4706.55,0.00010246,2]
[347983476,1736260248656,-11608.08,0.00010246,2]
[347983477,1736260248667,-2758.22,0.00010246,2]
[347983478,1736260248677,-693.7,0.00010247,2]
[347983479,1736260248688,-2128.29,0.00010247,2]
[347983480,1736260248698,-500.0,0.00010247,2]
[347983481,1736260248707,-640.48,0.00010247,2]
[347983482,1736260248718,-1232.08,0.00010247,2]
[347983483,1736260248728,-759.79,0.00010247,2]
[347983484,1736260248739,-1884.29,0.00010247,2]
[347983485,1736260248751,-208.19531946,0.00010247,2]
[347983486,1736260248762,-1065.09,0.00010247,2]
[347983487,1736260248772,-1308.74,0.00010247,2]
[347983488,1736260248782,-774.49,0.00010247,2]
[347983489,1736260248793,-2822.7,0.00010247,2]
[347983490,1736260248803,-2256.26,0.00010247,2]
[347983491,1736260248818,-150.0,0.00010247,2]
[347983492,1736260248829,-150.0,0.00010263,2]
[347983493,1736260248839,-150.0,0.00010265,2]
[347983494,1736260248850,-150.0,0.0001028,2]
[347983495,1736260248861,-150.0,0.00010298,2]
[347983496,1736260248872,-152.04547635,0.00010298,2]
[347983497,1736260248882,-150.0,0.00010304,2]
[347983498,1736260248893,-500.0,0.00010314,2]
[347983499,1736260248904,-836.3,0.00010314,2]
[347983500,1736260248914,-500.0,0.00010314,2]
[347983501,1736260248924,-500.0,0.00010314,2]
[347983502,1736260248934,-500.0,0.00010314,2]
[347983503,1736260248944,-500.0,0.00010314,2]
[347983504,1736260248955,-500.0,0.00010314,2]
[347983505,1736260248965,-500.0,0.00010314,2]
[347983506,1736260248976,-500.0,0.00010314,2]
[347983507,1736260248986,-500.0,0.00010314,2]
[347983508,1736260248997,-524.45,0.00010314,2]
[347983509,1736260249008,-500.0,0.00010314,2]
[347983510,1736260249018,-500.0,0.00010314,2]
[347983511,1736260249029,-500.0,0.00010314,2]
[347983512,1736260249039,-500.0,0.00010314,2]
[347983513,1736260249049,-500.0,0.00010314,2]
[347983514,1736260249060,-646.84,0.00010314,2]
[347983515,1736260249073,-500.0,0.00010314,2]
[347983516,1736260249084,-500.0,0.00010314,2]
[347983517,1736260249094,-500.0,0.00010314,2]
[347983518,1736260249104,-500.0,0.00010314,2]
[347983519,1736260249114,-331.35135766,0.00010314,2]
[347983520,1736260249124,-376.56217128,0.00010314,2]
[347983521,1736260249134,-820.61,0.00010314,2]
[347983522,1736260249144,-500.0,0.00010314,2]
[347983523,1736260249155,-500.0,0.00010314,2]
[347983524,1736260249165,-500.0,0.00010314,2]
[347983525,1736260249175,-500.0,0.00010314,2]
[347983526,1736260249186,-500.0,0.00010314,2]
[347983527,1736260249197,-500.0,0.00010314,2]
[347983528,1736260249207,-500.0,0.00010314,2]
[347983529,1736260249217,-500.0,0.00010314,2]
[347983530,1736260249228,-500.0,0.00010314,2]
[347983531,1736260249238,-500.0,0.00010314,2]
[347983532,1736260249248,-500.0,0.00010314,2]
[347983533,1736260249257,-500.0,0.00010314,2]
[347983534,1736260249267,-500.0,0.00010314,2]
[347983535,1736260249279,-500.0,0.00010314,2]
[347983536,1736260249289,-500.0,0.00010314,2]
[347983537,1736260249300,-500.0,0.00010314,2]
[347983538,1736260249313,-500.0,0.00010314,2]
[347983539,1736260249323,-500.0,0.00010314,2]
[347983540,1736260249333,-650.16,0.00010314,2]
[347983541,1736260249343,-500.0,0.00010314,2]
[347983542,1736260249354,-500.0,0.00010314,2]
[347983543,1736260249364,-500.0,0.00010314,2]
[347983544,1736260249375,-500.0,0.00010314,2]
[347983545,1736260249385,-500.0,0.00010314,2]
[347983546,1736260249396,-500.0,0.00010314,2]
[347983547,1736260249406,-500.0,0.00010314,2]
[347983548,1736260249416,-500.0,0.00010314,2]
[347983549,1736260249427,-500.0,0.00010314,2]
[347983550,1736260249438,-657.94,0.00010314,2]
[347983551,1736260249448,-500.0,0.00010314,2]
[347983552,1736260249458,-500.0,0.00010314,2]
[347983553,1736260249468,-500.0,0.00010314,2]
[347983554,1736260249478,-500.0,0.00010314,2]
[347983555,1736260249488,-500.0,0.00010314,2]
[347983556,1736260249498,-690.43,0.00010314,2]
[347983557,1736260249508,-500.0,0.00010314,2]
[347983558,1736260249518,-500.0,0.00010314,2]
[347983559,1736260249529,-500.0,0.00010314,2]
[347983560,1736260249539,-500.0,0.00010314,2]
[347983561,1736260249549,-500.0,0.00010314,2]
[347983562,1736260249562,-500.0,0.00010314,2]
[347983563,1736260249573,-500.0,0.00010314,2]
[347983564,1736260249583,-500.0,0.00010314,2]
[347983565,1736260249594,-500.0,0.00010314,2]
[347983566,1736260249605,-500.0,0.00010314,2]
[347983567,1736260249615,-500.0,0.00010314,2]
[347983568,1736260249626,-500.0,0.00010314,2]
[347983569,1736260249637,-500.0,0.00010314,2]
[347983570,1736260249833,-500.0,0.00010314,2]
[347983571,1736260249843,-500.0,0.00010314,2]
[347983572,1736260249853,-588.73,0.00010314,2]
[347983573,1736260249862,-692.41,0.00010314,2]
[347983574,1736260249872,-500.0,0.00010314,2]
[347983575,1736260249881,-500.0,0.00010314,2]
[347983576,1736260249891,-500.0,0.00010314,2]
[347983577,1736260249900,-500.0,0.00010314,2]
[347983578,1736260249910,-500.0,0.00010314,2]
[347983579,1736260249920,-508.48,0.00010314,2]
[347983580,1736260249930,-500.0,0.00010314,2]
[347983581,1736260249939,-500.0,0.00010314,2]
[347983582,1736260249949,-500.0,0.00010314,2]
[347983583,1736260249959,-500.0,0.00010314,2]
[347983584,1736260249968,-500.0,0.00010314,2]
[347983585,1736260249978,-500.0,0.00010314,2]
[347983586,1736260249987,-500.0,0.00010314,2]
[347983587,1736260249997,-500.0,0.00010314,2]
[347983588,1736260250007,-500.0,0.00010314,2]
[347983589,1736260250016,-500.0,0.00010314,2]
[347983590,1736260250026,-723.26,0.00010314,2]
[347983591,1736260250037,-500.0,0.00010314,2]
[347983592,1736260250047,-500.0,0.00010314,2]
[347983593,1736260250056,-549.79610762,0.00010314,2]
[347983594,1736260250070,-500.0,0.00010314,2]
[347983595,1736260250079,-500.0,0.00010314,2]
[347983596,1736260250088,-500.0,0.00010314,2]
[347983597,1736260250098,-500.0,0.00010314,2]
[347983598,1736260250108,-500.0,0.00010314,2]
[347983599,1736260250117,-500.0,0.00010314,2]
[347983600,1736260250128,-500.0,0.00010314,2]
[347983601,1736260250138,-500.0,0.00010314,2]
[347983602,1736260250147,-500.0,0.00010314,2]
[347983603,1736260250158,-500.0,0.00010314,2]
[347983604,1736260250167,-500.0,0.00010314,2]
[347983605,1736260250177,-500.0,0.00010314,2]
[347983606,1736260250187,-500.0,0.00010314,2]
[347983607,1736260250196,-500.0,0.00010314,2]
[347983608,1736260250206,-500.0,0.00010314,2]
[347983609,1736260250215,-673.6,0.00010314,2]
[347983610,1736260250224,-500.0,0.00010314,2]
[347983611,1736260250234,-499.37670087,0.00010314,2]
[347983612,1736260250243,-500.0,0.00010314,2]
[347983613,1736260250253,-500.0,0.00010314,2]
[347983614,1736260250263,-500.0,0.00010314,2]
[347983615,1736260250272,-500.0,0.00010314,2]
[347983616,1736260250282,-500.0,0.00010314,2]
[347983617,1736260250291,-500.0,0.00010314,2]
[347983618,1736260250301,-500.0,0.00010314,2]
[347983619,1736260250314,-500.0,0.00010314,2]
[347983620,1736260250323,-500.0,0.00010314,2]
[347983621,1736260250333,-500.0,0.00010314,2]
[347983622,1736260250343,-500.0,0.00010314,2]
[347983623,1736260250352,-500.0,0.00010314,2]
[347983624,1736260250361,-500.0,0.00010314,2]
[347983625,1736260250371,-500.0,0.00010314,2]
[347983626,1736260250381,-509.79,0.00010314,2]
[347983627,1736260250390,-500.0,0.00010314,2]
[347983628,1736260250400,-500.0,0.00010314,2]
[347983629,1736260250409,-500.0,0.00010314,2]
[347983630,1736260250419,-657.14,0.00010314,2]
[347983631,1736260250429,-154.66405128,0.00010314,2]
[347983632,1736260250439,-500.0,0.00010314,2]
[347983633,1736260250448,-500.0,0.00010314,2]
[347983634,1736260250458,-500.0,0.00010314,2]
[347983635,1736260250468,-500.0,0.00010314,2]
[347983636,1736260250477,-500.0,0.00010314,2]
[347983637,1736260250487,-500.0,0.00010314,2]
[347983638,1736260250497,-500.0,0.00010314,2]
[347983639,1736260250506,-500.0,0.00010314,2]
[347983640,1736260250516,-500.0,0.00010314,2]
[347983641,1736260250526,-500.0,0.00010314,2]
[347983642,1736260250536,-500.0,0.00010314,2]
[347983643,1736260250545,-500.0,0.00010314,2]
[347983644,1736260250555,-500.0,0.00010314,2]
[347983645,1736260250568,-500.0,0.00010314,2]
[347983646,1736260250577,-500.0,0.00010314,2]
[347983647,1736260250589,-500.0,0.00010314,2]
[347983648,1736260250601,-500.0,0.00010314,2]
[347983649,1736260250611,-500.0,0.00010314,2]
[347983650,1736260250621,-500.0,0.00010314,2]
[347983651,1736260250631,-680.53,0.00010314,2]
[347983652,1736260250640,-500.0,0.00010314,2]
[347983653,1736260250649,-500.0,0.00010314,2]
[347983654,1736260250660,-531.59,0.00010314,2]
[347983655,1736260250669,-500.0,0.00010314,2]
[347983656,1736260250679,-500.0,0.00010314,2]
[347983657,1736260250688,-500.0,0.00010314,2]
[347983658,1736260250698,-500.0,0.00010314,2]
[347983659,1736260250707,-500.0,0.00010314,2]
[347983660,1736260250716,-500.0,0.00010314,2]
[347983661,1736260250725,-500.0,0.00010314,2]
[347983662,1736260250735,-500.0,0.00010314,2]
[347983663,1736260250745,-500.0,0.00010314,2]
[347983664,1736260250758,-500.0,0.00010314,2]
[347983665,1736260250768,-504.37,0.00010314,2]
[347983666,1736260250777,-500.0,0.00010314,2]
[347983667,1736260250787,-500.0,0.00010314,2]
[347983668,1736260250796,-500.0,0.00010314,2]
[347983669,1736260250806,-500.0,0.00010314,2]
[347983670,1736260250820,-500.0,0.00010314,2]
[347983671,1736260250830,-526.48,0.00010314,2]
[347983672,1736260250839,-500.0,0.00010314,2]
[347983673,1736260250848,-500.0,0.00010314,2]
[347983674,1736260250857,-500.0,0.00010314,2]
[347983675,1736260250867,-509.58,0.00010314,2]
[347983676,1736260250877,-500.0,0.00010314,2]
[347983677,1736260250887,-500.0,0.00010314,2]
[347983678,1736260250897,-500.0,0.00010314,2]
[347983679,1736260250906,-500.0,0.00010314,2]
[347983680,1736260250916,-500.0,0.00010314,2]
[347983681,1736260250926,-500.0,0.00010314,2]
[347983682,1736260250935,-500.0,0.00010314,2]
[347983683,1736260250946,-500.0,0.00010314,2]
[347983684,1736260250955,-500.0,0.00010314,2]
[347983685,1736260250965,-500.0,0.00010314,2]
[347983686,1736260250975,-500.0,0.00010314,2]
[347983687,1736260250985,-594.5,0.00010314,2]
[347983688,1736260250994,-847.88,0.00010314,2]
[347983689,1736260251003,-500.0,0.00010314,2]
[347983690,1736260251013,-500.0,0.00010314,2]
[347983691,1736260251023,-753.72,0.00010314,2]
[347983692,1736260251032,-500.0,0.00010314,2]
[347983693,1736260251042,-500.0,0.00010314,2]
[347983694,1736260251051,-500.0,0.00010314,2]
[347983695,1736260251063,-500.0,0.00010314,2]
[347983696,1736260251072,-500.0,0.00010314,2]
[347983697,1736260251082,-500.0,0.00010314,2]
[347983698,1736260251091,-500.0,0.00010314,2]
[347983699,1736260251100,-500.0,0.00010314,2]
[347983700,1736260251110,-500.0,0.00010314,2]
[347983701,1736260251119,-500.0,0.00010314,2]
[347983702,1736260251128,-500.0,0.00010314,2]
[347983703,1736260251137,-500.0,0.00010314,2]
[347983704,1736260251148,-500.0,0.00010314,2]
[347983705,1736260251158,-648.38,0.00010314,2]
[347983706,1736260251167,-500.0,0.00010314,2]
[347983707,1736260251177,-500.0,0.00010314,2]
[347983708,1736260251187,-500.0,0.00010314,2]
[347983709,1736260251196,-500.0,0.00010314,2]
[347983710,1736260251206,-500.0,0.00010314,2]
[347983711,1736260251216,-292.49936421,0.00010314,2]
[347983712,1736260251226,-510.62,0.00010314,2]
[347983713,1736260251236,-500.0,0.00010314,2]
[347983714,1736260251245,-500.0,0.00010314,2]
[347983715,1736260251255,-500.0,0.00010314,2]
[347983716,1736260251265,-500.0,0.00010314,2]
[347983717,1736260251274,-500.0,0.00010314,2]
[347983718,1736260251284,-500.0,0.00010314,2]
[347983719,1736260251294,-1028.86,0.00010314,2]
[347983720,1736260251303,-500.0,0.00010314,2]
[347983721,1736260251316,-501.24,0.00010314,2]
[347983722,1736260251326,-500.0,0.00010314,2]
[347983723,1736260251335,-500.0,0.00010314,2]
[347983724,1736260251344,-566.85,0.00010314,2]
[347983725,1736260251353,-500.0,0.00010314,2]
[347983726,1736260251362,-500.0,0.00010314,2]
[347983727,1736260251372,-500.0,0.00010314,2]
[347983728,1736260251382,-500.0,0.00010314,2]